{"text_format":"3","workbook":"xlsx","n_sheets":1,"sheets":["监控、广播、网络"],"not_rendered":{"images":2,"external_links":1,"defined_names":2},"read":"whole","date_system":"1900"}

{"sheet":"监控、广播、网络","index":0,"n_rows":59,"n_cols":10,"rows_kept":59,"merged":[[0,0,0,8],[20,0,20,6],[20,7,20,8],[27,1,27,6],[27,7,27,8],[36,1,36,6],[36,7,36,8],[56,0,56,6],[56,7,56,8],[57,0,57,6],[57,7,57,8],[58,0,58,7]]}
["监控、广播、网络设施设备"]
["序号","项目名称","型号","样式图片","单位","数量","单价","合计","技术参数"]
["1","110报警器",null,null,"个","1","1680",{"$f":"G3*F3","v":{"v":1680,"d":"1,680.00"}},"按主管部门要求提供检测报告"]
["2","智能星光摄像机","DS-2CD3T46DWDV3-I3",null,"个",58,"460",{"$f":"G4*F4","v":{"v":26680,"d":"26,680.00"}},"在2304x1296下分辨力可达到1200TVL\n信噪比不小于55dB\n支持红外补光、白光补光，有效补光距离均能达到30m\n需支持IP66防尘防水\n支持DC12V供电\n内置1个麦克风，1个RJ45网络接口\n靶面尺寸为1/2.7英寸\n"]
[null,"400万防油污摄像机（厨房）","DS-ECD4045-L3/DNSK(4mm)",null,"个",2,"620",{"v":1240,"d":"1,240.00"},"具有400万像素 CMOS传感器。\n最大分辨率2560x1440\n筒机镜头护罩无需任何工具即可实现快速拆卸及安装，方便镜头护罩的清洗、更换。\n存储接口：具备USB接口或者存储卡接口连接外部存储介质\n具有时钟同步功能\n具有视音频参数调节功能\n需具大于110dB宽动态\n抓拍图片功能：具有手动抓拍、定时抓拍、报警抓拍，并将抓拍图片FTP上传功能设置选项，抓图的时间间隔和报警抓拍图片数量可设置\n智能分析功能：具有以下智能分析功能设置选项：音频异常、虚焦侦测、场景变更、区域入侵、越界、进入区域、离开区域、徘徊、人员聚集、快速移动、停车、物品遗留、物品拿取\n支持人脸抓拍功能，可对经过设定区域的行人进行人脸检测，当检测到人脸后，可抓拍人脸图片，抓拍图片数量可设\n具有人脸跟踪设置选项\n"]
[null,"400万人脸抓拍摄像机机","DS-2CD7T4XYZ-LZS(6mm)",null,"个",1,"1120",{"v":1120,"d":"1,120.00"},"分辨率设置为2560×1440@25fps，分辨力不小于1400TVL\n具有不小于1/1.8\"靶面尺寸\n像元尺寸不小于2.9um×2.9um\n内置GPU芯片\n最低照度彩色不大于0.0002 lx，黑白不大于0.0001 lx\n宽动态能力不小于120dB\n支持H.264、H.265、MJPEG视频编码格式，且具有High Profile编码能力\n信噪比不小于58dB\n需支持三码流技术，主码流最高≥2560x1440@25fps，子码流≥704x576@25fps，第三码流最高≥1920x1080@25fps\n需支持IP67防尘防水\n需支持DC12V供电，且在不小于DC12V±30%范围内变化时可以正常工作\n设备与客户端之间用200米网线进行传输，数据包丢包率不大于0.1%\n在丢包率设置为20%的网络环境下，可正常显示监视画面\n★支持固件安全检验功能，摄像机uboot应采用加密存储，通过离线烧写存储器方式写入的uboot执行程序，不能被硬件微引导程序加载执行。\n★设备具有耀光抑制功能，耀光区域≤1%。\n"]
["3","录像机","8832N-R8 ",null,"台",3,"2500",{"v":7500,"d":"7,500.00"},"R系列高性能NVR，专为400W及以上高清监控应用和存储所打造，可广泛应用于各种规模的SMBG场景中，具有如下特性：a) 基础8路1080P解码，开启SVC增强模式，最高可提升至16路1080P解码，告别资源不足；b) 专为高分辨率相机接入设计，最大支持接入各类800万高清/拼接相机等；c) 最大支持满配8T硬盘，满足录像长时间存储需求；d）支持HDMI 4K超高清输出e）平台接入协议丰富，支持萤石、Ehome2.0、ISUP5.0以及GB28181协议，轻松实现平台接入；","2200元"]
["4","录像机","7808N-R",null,"台",1,"850",{"v":850,"d":"850.00"},"R系列高性能NVR，专为400W及以上高清监控应用和存储所打造，可广泛应用于各种规模的SMBG场景中，具有如下特性：\na) 基础8路1080P解码，开启SVC增强模式，最高可提升至16路1080P解码，告别资源不足；\nb) 专为高分辨率相机接入设计，最大支持接入各类800万高清/拼接相机等；\nc) 最大支持满配8T硬盘，满足录像长时间存储需求；\n\nd）支持HDMI 4K超高清输出\ne）平台接入协议丰富，支持萤石、Ehome2.0、ISUP5.0以及GB28181协议，轻松实现平台接入；\n\n \n\n•2U 标准机箱，支持机架安装；\n•8盘位，最大支持8TB硬盘\n•支持1个HDMI 4K输出 +1个VGA高清1080P异源输出\n•支持8路1080P解码（开启SVC增强模式后，8/16路型号可提升至12路1080P解码，32/64路型号可提升至16路1080P解码）\n•支持H.265、H.264混合解码，最大支持接入8MP高清IPC\n•2个千兆网口\n•16进4出报警口\n•2个USB2.0接口（前置）+1个USB3.0接口（后置）\n","665元"]
["5","硬盘","6T硬盘",null,"个",16,"950",{"v":15200,"d":"15,200.00"},"监控专用硬盘 录像储存"]
["6","网线","超5 类网线",null,"箱",8,"599",{"v":4792,"d":"4,792.00"},"纯铜系列无氧铜"]
["7","电源线","监控专用电源线",null,"卷",8,"490",{"v":3920,"d":"3,920.00"},"监控专用电源线"]
["8","监控显示屏","55寸",null,"台",3,"2500",{"v":7500,"d":"7,500.00"},"• 支持1920 × 1080高清显示\n\n• 178°/178°广视角\n\n• 三边超窄边框，纤薄机身\n\n• 爱眼不闪屏，低蓝光设计\n\n• HDMI+VGA双接口，丰富连接性和兼容性\n\n• 采用 3D 降噪技术，图像鲜艳明亮，呈现真实细节\n\n• 支持软件展频技术可降低 EMI 辐射\n\n• 支持VESA壁挂"]
["9","交换机","16口",null,"台",4,"310",{"v":1240,"d":"1,240.00"},"三层网管交换机，交换容量336Gbps，包转发率51Mpps，16口10/100/1000Mbps自适应电口交换机，"]
["10","支架",null,null,"个",58,"9",{"v":522,"d":"522.00"}]
["11","防水箱","20*30",null,"个",58,"7",{"v":406,"d":"406.00"}]
["12","机柜","120*80",null,"个",1,"780",{"v":780,"d":"780.00"}," "]
["13","线管",20,null,"捆",6,"170",{"v":1020,"d":"1,020.00"}]
["14","辅材",null,null,"批",1,"400",{"v":400,"d":"400.00"}]
["15","大门口电子屏","单色强力聚彩","根据尺寸现场定制据实结算","平米",9,1180,{"v":10620,"d":"10,620.00"},"含大厅食谱电子屏"]
["16","线路传输及安装施工调试",null,null,"个",58,"260",{"v":15080,"d":"15,080.00"}]
["（监控系统）以上小计：",{"$nulls":6},{"$f":"SUM(H3:H20)","v":{"v":100550,"d":"100,550.00"}}]
[1,"网关路由","EG-E系列",null,"台",1,"1050",{"$f":"F22*G22","v":{"v":1050,"d":"1,050.00"}},"5口全千兆一体化路由器。终端带机量200台，最大支持1000Mbps带宽。整机带5个千兆以太网口，其中固化1个WAN口，3个LAN/WAN可切换口，6个固化LAN口，最大支持4个WAN口。整机最大PoE输出110W，单端口最大输出30W。集成统一网络控制器功能，最大可管理150台支持智能组网特性的EAP、RAP或网管交换机，以及128台以内的ES2xx系列智能交换机。支持应用识别、流量控制、VPN、PPPoE、认证、行为管理等丰富功能"]
[2,"核心交换","NBS5100系列",null,"台",4,"410",{"v":1640,"d":"1,640.00"},"三层网管交换机，交换容量336Gbps，包转发率51Mpps，16口10/100/1000Mbps自适应电口交换机，固化4个SFP千兆光口，支持静态路由、三层聚合口、ACL、端口镜像等功能，支持睿易APP和MACC云平台统一管理。"]
[3,"无线AP","EAP系列",null,"台",16,"230",{"v":3680,"d":"3,680.00"},"1200M双频面板AP，标配典雅白上盖，标准86mm面板盒尺寸，含一个前置百兆下联口和一个后置百兆上联口。内置天线，整机最大无线接入速率1167Mbps，支持802.11b/g/n和802.11a/n/ac Wave1/Wave2，支持AP与路由两种工作模式，支持睿易一体化组网，支持“睿易”APP管理，PoE供电。"]
[4,"网线","配件",null,"箱",6,"590",{"v":3540,"d":"3,540.00"},"网络配件网线"]
[5,"水晶头","配件",null,"盒",2,"40",{"v":80,"d":"80.00"},"水晶头"]
[6,"线路传输及安装施工调试",{"$nulls":3},1,1000,{"v":1000,"d":"1,000.00"}]
[null,"（网络系统）以上小计",{"$nulls":5},{"$f":"SUM(H22:H27)","v":{"v":10990,"d":"10,990.00"}}]
[1,"壁挂","KD-704",null,"个",12,"200",{"$f":"F29*G29","v":{"v":2400,"d":"2,400.00"}},"频率响应：90HZ-16KHZ，     外部尺寸75*200*105MM，                            ，扬声器尺寸：158MM，       功率：5W-10W        "]
[2,"音柱","SP-80W",null,"支",2,"580",{"$f":"F30*G30","v":{"v":1160,"d":"1,160.00"}},"豪华铝质防水音柱，选用防水单元，室内外均宜，寿命长，灵敏度高，声音清晰明亮 ，配有安装支架，安装便捷 尺寸：810×225×120mm 功率：80W 电压：70V/100V   铝合金壳体 ABS上下盖"]
[3,"定压功放","USB-8.0AP",null,"台",1,"4880",{"v":4880,"d":"4,880.00"},"三路话筒输入，三路线路输入，一路线路输出，其中一路话筒有默认优先功能，有高低音调节功能，带有USB接口，带继电器控制的8分区输出，便于紧急广播，功率输出短路保护警告、自带提示音报警。\n额定功率：800W\n1500W/2000W输出形式：1.定压70V/120V   2.定阻4-16欧姆  \n频率响应：40Hz-18KHz±0.5dB信噪比：话筒部分为＞70dB，线路部分为＞76dB\n电源电源：AC220体积：482*480*132mm"]
[4,"无线话筒","KT43-02",null,"套",1,"2600",{"v":2600,"d":"2,600.00"},"无线话筒，话筒可充电。"]
[5,"音频线","200支",null,"卷",3,"580",{"v":1740,"d":"1,740.00"},"0.5平 高宝真 音箱线（无氧铜）                   200支  100"]
[6,"秋叶原","一对二",null,"根",2,"30",{"v":60,"d":"60.00"},"1.5米 音频线"]
[7,"辅材",null,null,"批",1,"200",{"v":200,"d":"200.00"}]
[8,"线路安装施工\n调试",{"$nulls":3},1,"2500",{"v":2500,"d":"2,500.00"}]
[null,"（广播系统）以上小计",{"$nulls":5},{"$f":"SUM(H29:H36)","v":{"v":15540,"d":"15,540.00"}}]
["1","  全频主扩音箱",null,null,"只",2,"5200",{"$f":"F38*G38","v":{"v":10400,"d":"10,400.00"}},"12英寸高效能的低音单元\n1.75英寸钛膜压缩驱动高音单元 \n箱体面板采用15 mm夹板制作,围板采用特质15mmMDF板，表面经黑色耐磨喷漆处理\n70° x 100° 覆盖角设计，具有均匀且平滑的轴向和偏轴向的响应 \n外观前卫，扎实的钢质防护铁网 \n精确设计的分频器能优化频率响应\n应用：KTV扩声,夜总会、多功能娱乐场所扩声\n 参数:系统类型：12英寸，2分频，低频反射式\n高音单元：1个1.75英寸钛膜压缩高音喇叭，航天级高磁性铁氧体\n低音单元：1个12英寸低音喇叭，2.65英寸音圈，航天级高磁性铁氧体\n频率范围(-10 dB)1：50 Hz - 20 KHz\n频率响应(±3 dB)1：85 Hz - 20 KH\n灵敏度(1w/1m)1：97dB\n额定阻抗：8 Ohms\n最大声压级输出：124dB(峰值:130dB)\n重量：19.5KG\n额定输入功率2：300W/600 W/1200 W (连续/音乐信号/峰值)\n覆盖角：70° x 100°(H x V)\n外型尺寸(H x W x D)：602mm*350mm*382mm\n箱体结构：梯形，采用15 mm夹板制作,围板采用特质15mmMDF板，表面经黑色耐磨喷漆处理"]
["2","纯后级功放",null,null,"只",1,"5200",{"$f":"F39*G39","v":{"v":5200,"d":"5,200.00"}},"全新外观设计，标准2U机箱高度，适用专业机柜安装放置。\n令你使用时更灵活方便。\n全功能的保护设施，具有完善的输出短路保护和超温保护功能，散热风扇温控启动令扬声器等输出设备更安全。\n具备有高效率大型变压器，大容量电容的滤波电源。保证功放满负载输出时极低失真，低频控制力更强，声音更清晰。\n低噪音设计，令功放机工作时噪音极低。\nCHA、CHB通道内置相位低通，频点调节电路，方便用户选择使用，可作超低音扩声，也可作全频扩声。\n多功能，多通道的整机性能设计，适合多种不同场合的语言传输和扩声。\n采用双侧对流渐进式散热系统，在电源部分设置恒温装置，电子强力风扇加强本机的散热，避免机内过热。\n用继电器延时的电路实现开机的软启动特性，从而保护了扬声器免受开关机似的电冲击。采用原装进口大东芝功率管放大输出、功率超级强劲。\n650W×2 :8Ω，立体声功率:1200W×2 4Ω立体声功率:桥接功率:2000W 8Ω频率响应:20Hz-20kHz、＋0/－0.5dB 总谐波失真:＜0.05%@8Ω1KHz 信噪比:95dB 转换速率:40 V/μs 阻尼系数:＞200@8Ω 输入灵敏度:0.775V/1.0/1.4 保护:峰值限幅，过载，直接，短路，过热，软启动 控制:前面板：电源开关／通道１通道２音量控制器 后面板：模式／灵敏度/限幅器/接地开关"]
["3","数字效果处理器",null,null,"台",1,"3400",{"v":3400,"d":"3,400.00"},"音乐部分(MUS10) \n输入电平(Level) 775mVrms \n_频率响应(Frequency response) 20Hz--20KHz \n失真(THD) \n_信噪比(SNR) >80dB \n参量均衡(PEQ) 1--7段 \n麦克风部分(MIC输入) \n输入电平(Level) 50mVrms \n频率响应(Frequency response) 20Hz--20KHz \n失真(THD) <0.1 \n信噪比(SNR) >80dB(直通) \n参量均衡(PEQ) 1--7段 \n中置部分(CEN) \n输入电平(Level) 775mVrms \n频率响应(Frequency response) 20Hz--20KHz \n失真(THD) <0.003 \n_信噪比(SNR) >80dB \n参量均衡(PEQ) 1-3段 \n超低部分(SUB) \n输入电平(Level) 775mVrms \n频率响应(Frequency response) 20Hz--200Hz \n信噪比(SNR) >80dB \n环绕部分(SUR) \n_输入电平(Level) 775mVrms \n频率响应(Frequency response) 20Hz--20KHz \n失真(THD) <0.003 \n信噪比(SNR) _>80dB \n参量均衡(PEQ) 1-5段"]
["4","专业KTV无线数字话筒",null,null,"套",1,"1380",{"v":1380,"d":"1,380.00"},"频率范围：645.250-680.250MHz\n频率宽度：50MHz\n信噪比：≥50dB\n有效距离：30米\n音头类型：动圈式\n频道总数：40CH\n电源供应：12V DC -- 1000mA"]
["5","线材","2.0高清线4K传输 线长15米",null,"根",1,"190",{"v":190,"d":"190.00"}]
["6","辅材","电源线、排插、插头、线槽等",null,"批",1,"200",{"v":200,"d":"200.00"}]
["7","附件","吊杆挂架",null,"只",2,"80",{"v":160,"d":"160.00"}]
["8","网络机柜","豪华玻璃版",null,"套",1,"560",{"v":560,"d":"560.00"}]
["9","线材及辅材",null,null,"批",1,"600",{"v":600,"d":"600.00"}]
["10","P2.5LED全彩显示屏",null,"根据现场定制，据实结算","平方",10,"4980",{"v":49800,"d":"49,800.00"},"规格P2.5室内表贴节能全彩LED屏\n▲显示屏尺寸  ≥XX*XX=XXX㎡\n1、像素点间距\t2.5±0.05mm\t\n2、结构\t\t\tLED显示屏显示部分结构可采用钢、铝、镀锌方管、塑料等材料，结构安全坚固\n3、外观\t\t\tLED显示屏的外表面无明显划痕，LED显示屏模组安装应一致，无松动无破裂\n4、工作电压\t\t在4.2×(1±10%）VDC范围内能正常工作                                                                                  ★5、自动校正\t\t数据采集自动共享到网上，客户可自行下载校正数据，进行校正和优化\n6、工作环境\t\t-20℃~50℃条件下能正常工作\n7、材质\t\t\t箱体采用镁合金/压铸铝/铁材质\t符合，套件采用采用聚碳酸酯和玻璃纤维材质\n8、系统调节功能\t可通过系统调节参数影响显示效果\n9、像素密度\t\t单元大小为320mm×160mm的像素密度为8192点\n10、动态扫描\t采用行驱动芯片\t\n11、像素组成\t1R、1G、1B\t\n12、支持亮度调节功能\n13、支持亮度校正、色度校正\n14、驱动芯片功能\t具有列下消隐功能、倍频刷新率提升、低灰偏色改善\n15、支持鬼影消除、暗亮线消除、慢速开启、十字架消除、毛毛虫消除、亮度缓慢变亮功能\n16、功能\t\t显示单元均可独立控制，单点故障不影响整屏使用，单元支持带电热插拔；单元板支持前、后维护；系统、电源支持前、后维护\n★17、防伪功能\t具备logo、产品型号\n18、支持联网一键下载程序文件和调试\n19、支持亮暗线拼缝调节\t\n20、整屏平整度\t≤0.1mm\t\n★21、模组平整度\t≤0.04mm\t\n★22、拼接缝\t\t≤0.04mm\t\n23、最大亮度\t≥600cd/㎡\n24、最高对比度\t≥6000:1\t\n25、水平视角\t≥160°\t\n26、垂直视角\t≥160°\t\n27、亮度均匀性\t≥97%\n28、刷新率\t\t≥1920Hz\n29、最大功耗\t≤350W/m2\n30、像素中心距精确度\t≤3%\t\n31、像素失控率\t<0.01%\n32、灰度级数（信号处理深度）\t采用14bit技术\n★33、色温\t\t3000K~18000K可调\n34、色度均匀性\t±0.002Cx、Cy内\t\n35、低亮高灰\t\t亮度为20%时信号处理深度（灰度级数）达到14bit\n36、采用恒流设计\n37、换帧频率\t\t60Hz\t\n38、宽色域\t\t测试NTSC色域108.5%\n39、平均功耗\t≤150W/m2\n40、色度均匀性\t-0.003＜Cx＜0.003，-0.003＜Cy＜0.003（校正后）\n41、反光率\t\t≤1.5%\t\n★42、画面延时\t≤500ns\t\n43、衰减率\t\t≤10%（工作3年）\n44、图像质量\tLED显示屏图像质量主观评价优\n45、防护性能\t具有防静电、防电磁干扰、喷三防漆防潮、防腐蚀、防虫、抗震动、抗雷击等功能；具有电源过压、过流、断电保护、分布上电措施、防护等级达到IP50\n46、连续工作时间   连续工作时间：≥7×24hrs，支持连续不间断显示\n47、使用寿命\t≥100000h\n★48、平均无故障时间\tMTBF平均无故障时间≥20000h；MTTR平均修复时间≤20分钟\t\n49、屏幕温升\t最高亮度（白平衡）持续工作4小时，模组表面温升小于20K\n50、高温负荷工作\t样品状态：通电工作,试验温度：80℃,试验时间：12h;试验结束后，产品正常工作\n51、低温负荷工作\t样品状态：通电工作,试验温度：-40℃,试验时间：12h;试验结束后，产品正常工作\n52、高温存储\t\t样品放入试验箱中，试验箱内温度80℃，存放48h，无异常\n53、低温存储\t\t样品放入试验箱中，试验箱内温度-40℃，存放48h，无异常\n54、恒定湿热\t\t样品状态：通电工作,试验温度：85℃,相对湿度：85%,试验时间：168h;试验结束后，产品正常工作\n55、湿热负载\t\tLED显示屏最高工作环境温度下，相对湿度87%-93%，通电工作12h;试验结束后，产品正常工作\n56、光生物安全检测\t无危害类：8h（30000s）曝辐中不造成光化学紫外危害（ES），并在16min（1000s）内不造成近紫外危害（EUVA），并在2.8h（10000s）内不造成对视网膜蓝光危害（LB）并在10s内不造成对视网膜热危害（LR），且在1000s内不造成对眼睛的红外辐射危害（EIR）\n57、盐雾等级\t达到盐雾10级\n58、阻燃\t\tPCB板、防火保护外壳达到V-0等级\n59、振动试验\t频率循环范围：（5～55～5）Hz,震动试验，试验结束后，产品正常工作\n60、冷热冲击\t\t低温：-40℃，时间：0.5h，高温：100℃，时间：0.5h，转换时间：（3-5分钟）min，试验周期：上述试验为1个循环，试验进行200循环，样品状态：非工作状态；试验结束后，产品正常工作\n61、PCB板材\t\t采用玻璃化温度≥150℃的覆铜板\n★62、失真效果检测\t显示画面无几何畸变、扭曲、比例失调情况，无亮度、色温非线性失真。\n★63、能耗对比\t\t对LED显示屏进行节能对比，达到能效一级标准\n64、高低温循环\t低温：-40℃，时间：0.5h，高温：80℃，时间：0.5h，转换时间：（3-5分钟）min，试验周期：上述试验为1个循环，试验进行200循环，样品状态：工作状态；试验结束后，产品正常工作\n65、电磁兼容/干扰\t符合Class B标准\n66、抗紫外线UV检测合格\n★67、噪声\t\t1m范围内，测试4个位置（前后左右）噪音不大于2dB\n68、抗电强度\t\t在电源插头与金属外壳之间以施加试验电压1.5kV/50Hz，保持1min，不应出现飞弧和击穿现象。\n69、对地漏电流\tmA\t≤3.5 \t\n★70、抗干扰\t\t符合IEC801规定\t\n★71、安全性\t\t符合GB4793规定\t\n★72、一键点屏\t\t支持一键点屏技术，开机后自动识别系统连接，无需重置系统配置\n73、防碰撞\t\t具备防碰撞焊盘技术\n★74、SELV电路\t\t具备SELV电路\t\n75、箱体防护等级\tIK10\t\n76、人眼视觉舒适度\tVICO指数≤1\t\n77、PCB层数   PCB采用2层、4层、6层、8层、10层设计 \n78、PCB板材\t\t采用玻璃化温度≥150℃的覆铜板\n79、失真效果检测\t显示画面无几何畸变、扭曲、比例失调情况，无亮度、色温非线性失真\n80、能耗对比  对LED显示屏进行节能对比，达到能效一级标准\n81、机械强度  结构设计合理，具有足够的机械强度\n82、250N的恒定作用力试验  250N的力施加在外部外壳上，无危险\n83、冲击试验  用一个直径50mm、质地500g±25g的光滑的实心钢球，使其从距样品垂直距离（H）为1.3米处自由落到样品上，样品试验后无损伤\n84、棱缘和拐角  充分倒圆和磨光"]
[null,"控制接收系统",null,null,"套",1,null,{"$f":"F48*G48","v":0},"1、集成HUB75，无需再配转接板，更方便，成本更低；\n2、减少接插连接件，减少故障点，故障率更低；\n3、支持常规芯片实现高刷新、高灰度、高亮度；\n4、全新灰度引擎，低灰度表现更佳；\n5、细节处理更完美，可消除单元板设计引起的某行偏暗、低灰偏红、鬼影等细节问题；\n6、支持14bit精度的色度、亮度一体化逐点校正；\n7、支持所有常规芯片、PWM芯片和灯饰芯片；\n8、支持静态屏、1/2~1/64扫之间的任意扫描类型；\n9、支持任意抽点，支持数据偏移，可轻松实现各种异型屏、球形屏、创意显示屏；\n10、单卡支持16组RGB信号输出；\n11、支持超大带载面积，单卡带载128*512，256*256；\n12、先进设计，优质元器件，全自动高低温老化测试，零故障出厂；\n13、支持DC 3.3V~6V超宽工作电压，有效减弱电压波动带来的影响；\n★14、为保证信号传输的稳定性，接收卡需支持一帧延迟，发送端到显示端延迟达到一帧\n★15、为保证接收卡能够持久运行，需具有电击和能量危险的防护"]
[null,"控制发送系统",null,null,"套",1,null,0,"1、支持广播级缩放及多画面显示。具备8个千兆网口输出，单机可支持最宽8192像素，或最高4096像素的LED显示屏。同时，还具备一系列丰富实用的功能，可以实现灵活的屏幕控制和高品质的图像显示，在LED显示屏工程应用领域具有显著优势。\n2、支持丰富的数字信号接口，包括1路SDI，1路HDMI，2路DVI；\n3、最大输入分辨率1920*1200@60Hz，支持分辨率任意设置；\n4、最大带载520万像素，最宽可达8192点，或最高可达4096点；\n5、支持视频源任意切换，任意缩放；\n6、支持三画面显示，位置、大小可自由调节；\n7、支持HDCP1.4；\n8、双USB2.0高速通讯接口，用于电脑调试和主控间任意级联；\n9、支持亮度和色温调节；\n10、支持低亮高灰； "]
[null,"智控盒（带投屏功能）",null,null,"台",1,null,0,"1、外形尺寸\t机身有logo、产品型号、软件下载二维码，1U机箱高度，可上机架安装\n2、解码方式\t采用硬件解码，支持多视频窗口同步解码播放，播放流畅不卡顿\n3、输出接口\t支持HDMI/DP接口\n4、输入接口\t支持HDMI输入、USB2.0、USB3.0输入、RJ45网口输入\n5、加密功能\t支持WIFI密码加密、APP账号登录，双重加密设置，保证LED显示画面安全\n6、传输功能\t支持手机、平板、电脑、优盘等方式上传素材\n7、播放功能\t支持字幕、视频、图片、文本、日期、时钟、天气、音乐图层混合显示，最多支持10图层显示，图层位置、大小可自由调节\n8、控制功能\t支持所见所得手指拖动操作界面，可通过分辨率调整或拖动画面对输入图像进行拼接、缩放\n9、点对点播放\t无需处理器，即可实现点对点播放\n10、投屏功能\t支持手机、平板、电脑投屏\n11、会议功能\t支持会议模式、会议主题管理、主题一键切换\n12、图像处理功能\t支持画面拼接、缩放、裁剪功能\n13、测试画面功能\t支持各种基色原色显示，可测试屏幕坏点\n14、字幕功能\t支持滚动字幕，速度可调，字体颜色可调，字体大小缩放，支持轨迹文字播放，可随意定义轨迹\n15、图片功能\t支持图片任意漫游，自定义移动路径、联动图片播放\n16、点播功能\t支持图片、视频点播，即点即播\n17、U盘功能\t支持U盘即插即播/素材导入，自动循环播放\n18、Logo显示功能\t支持LOGO叠加，可以任意根据需要进行叠加固定LOGO\n19、日期功能\t支持日期图层叠加，位置、大小可自由调节\n20、时钟功能\t支持时钟图层叠加，位置、大小可自由调节\n21、天气功能\t支持天气图层叠加，位置、大小可自由调节\n22、音乐功能\t支持音乐图层，音量、位置可自由调节，各层视频/音乐音量分开控制。"]
[null,"显示屏开关电源",null,null,"套",1,null,0,"1、防伪功能\t具备logo、产品型号\n2、外形结构\t楞缘及拐角均充分倒圆和磨光\n3、丝印标示\t丝印标示清晰明显，有节能、危险警告、输入输出电压电流、功率、极性指示等标示\n4、泄漏电流\t泄漏电流≤0.25mA\n5、接地阻抗\t外壳与大地阻抗≤10mΩ\n6、保护功能\t输入AC端自带保护盖，且具备过流、断路、短路、过压、欠压、防雷等保护功能\n7、抗电强度\t输入对输出，AC2000V/1min；输入对地，AC1500V/1min；输出对地，AC500V/1min\n8、平均无故障时间\tMTBF≥10000H\n9、输入电压范围\t180VAC～264VAC"]
[null,"配电柜",null,null,"台",1,null,0,"1、防伪功能\t具备logo、产品型号\n2、安全性\t内部线材均采用4平方厘米国标纯铜导线；\n3、双重开关控制\t具备自动/手动控制设备供电的开启和关闭；\n4、多组输出回路\t每组可独立控制，如照明输出、风机/空调输出分路、显示屏输出分路分开控制\n5、上电保护功能\t具有延时启动、浪涌保护、防雷、过流、短路等保护功能；\n6、功能性检测\t具有电源状态指示、运行状态指示、风机、空调指示、检修多功能插座及检修照明开关； \n7、额定工作电压\t380V/220V"]
[null,"钢结构",null,null,"㎡",null,null,0,"1、钢结构尺寸\n2、钢结构：钢架构件（含接合板）采用Q235B钢制作，结构用钢应符合《GB700-88》规定的Q235要求，保证其抗拉强度、伸长率、屈服点，碳、硫、磷的极限含量；\n3、焊条：手工焊：Q235连接用E43系列焊条；\n4、自动焊：Q235连接用H08系列焊条；\n5、要求：抗震7级，抗风8级；\n6、包边：不锈钢包边；"]
[null,"备品及配件",null,null,"套",1]
[null,"辅助设备",null,null,"套"]
["11","线路安装施工\n调试",null,null,"套",1,"1500",{"$f":"F56*G56","v":{"v":1500,"d":"1,500.00"}}]
["LED专项小计",{"$nulls":6},{"v":49800,"d":"49,800.00"}]
["（多媒体系统）以上小计",{"$nulls":6},{"$f":"H57+H56+SUM(H38:H46)","v":{"v":73390,"d":"73,390.00"}}]
["以上合计（元）",{"$nulls":7},{"$f":"H21+H28+H37+SUM(H38:H46)+H57+H56","v":{"v":200470,"d":"200,470.00"}}]